[Event "*** Titled Tuesday 3|2 Blitz"]
[Site "Chess.com"]
[Date "2016.09.06"]
[Round "4"]
[White "dretch"]
[Black "Iuri_Shkuro"]
[Result "1-0"]
[WhiteElo "2628"]
[BlackElo "2485"]
[TimeControl "180+2"]
[EndTime "11:50:01 PDT"]
[Termination "dretch won on time"]

1. d4 {[%clk 0:03:01.9]} 1... Nc6 {[%clk 0:03:00.8]} 2. e4 {[%clk 0:03:00.3]}
2... d5 {[%clk 0:02:59.6]} 3. Nc3 {[%clk 0:03:00.5]} 3... e5 {[%clk 0:02:59.8]}
4. Bb5 {[%clk 0:02:53.6]} 4... dxe4 {[%clk 0:02:59.5]} 5. d5 {[%clk 0:02:44.8]}
5... a6 {[%clk 0:03:00.1]} 6. Ba4 {[%clk 0:02:45]} 6... b5 {[%clk 0:03:00.8]} 7.
Nxb5 {[%clk 0:02:43.9]} 7... axb5 {[%clk 0:03:01.6]} 8. Bxb5 {[%clk 0:02:45.8]}
8... Ne7 {[%clk 0:03:02.5]} 9. Bg5 {[%clk 0:02:37.4]} 9... Qd6 {[%clk
0:02:59.7]} 10. Bxe7 {[%clk 0:02:29]} 10... Kxe7 {[%clk 0:02:44.3]} 11. Bxc6
{[%clk 0:02:29.2]} 11... Rb8 {[%clk 0:02:36.7]} 12. Ne2 {[%clk 0:02:24.2]} 12...
Rxb2 {[%clk 0:02:28.8]} 13. O-O {[%clk 0:02:24.2]} 13... f5 {[%clk 0:02:25.3]}
14. Qc1 {[%clk 0:02:08.8]} 14... Rb8 {[%clk 0:02:18.3]} 15. a4 {[%clk 0:02:00]}
15... Ba6 {[%clk 0:02:18]} 16. c4 {[%clk 0:01:47.2]} 16... Kf6 {[%clk
0:02:13.5]} 17. Bb5 {[%clk 0:01:32.4]} 17... Ra8 {[%clk 0:02:12.1]} 18. f4
{[%clk 0:01:32.1]} 18... Qc5+ {[%clk 0:01:54.1]} 19. Kh1 {[%clk 0:01:31.7]}
19... Bd6 {[%clk 0:01:54.9]} 20. Qc3 {[%clk 0:01:18.1]} 20... Bxb5 {[%clk
0:01:49.4]} 21. axb5 {[%clk 0:01:17.9]} 21... g6 {[%clk 0:01:34.4]} 22. Ra6
{[%clk 0:00:37.2]} 22... Rxa6 {[%clk 0:01:32.6]} 23. bxa6 {[%clk 0:00:39.1]}
23... Ra8 {[%clk 0:01:32.6]} 24. g4 {[%clk 0:00:40]} 24... Rxa6 {[%clk
0:01:16.7]} 25. gxf5 {[%clk 0:00:39.9]} 25... Ra3 {[%clk 0:01:14.8]} 26. fxe5+
{[%clk 0:00:39.5]} 26... Kg7 {[%clk 0:00:59.7]} 27. f6+ {[%clk 0:00:30.5]} 27...
Kf8 {[%clk 0:00:56.8]} 28. Qc1 {[%clk 0:00:29.7]} 28... Qe3 {[%clk 0:00:34.2]}
29. Qxe3 {[%clk 0:00:28.2]} 29... Rxe3 {[%clk 0:00:34.6]} 30. exd6 {[%clk
0:00:29.4]} 30... cxd6 {[%clk 0:00:35.8]} 31. Nf4 {[%clk 0:00:28.5]} 31... Kf7
{[%clk 0:00:35.2]} 32. Ne6 {[%clk 0:00:29.7]} 32... h6 {[%clk 0:00:35.6]} 33.
Nd8+ {[%clk 0:00:30.3]} 33... Kf8 {[%clk 0:00:36.1]} 34. f7 {[%clk 0:00:31.3]}
1-0

[Event "*** Titled Tuesday 3|2 Blitz"]
[Site "Chess.com"]
[Date "2016.09.06"]
[Round "4"]
[White "Mornar1951"]
[Black "Krutoy123"]
[Result "0-1"]
[WhiteElo "2535"]
[BlackElo "2401"]
[TimeControl "180+2"]
[EndTime "11:50:01 PDT"]
[Termination "Krutoy123 won on time"]

1. Nf3 {[%clk 0:03:01.9]} 1... Nf6 {[%clk 0:02:57.5]} 2. c4 {[%clk 0:03:02.6]}
2... g6 {[%clk 0:02:57.3]} 3. Nc3 {[%clk 0:03:02.9]} 3... Bg7 {[%clk 0:02:58.5]}
4. e4 {[%clk 0:03:04.2]} 4... O-O {[%clk 0:02:59.6]} 5. d4 {[%clk 0:03:05.8]}
5... d6 {[%clk 0:03:00.2]} 6. Be2 {[%clk 0:03:07.4]} 6... e5 {[%clk 0:02:59.4]}
7. O-O {[%clk 0:03:08.9]} 7... Nbd7 {[%clk 0:02:59.5]} 8. Be3 {[%clk 0:03:08.6]}
8... Re8 {[%clk 0:03:00.3]} 9. d5 {[%clk 0:03:07.9]} 9... Nh5 {[%clk 0:03:01.5]}
10. g3 {[%clk 0:03:02.7]} 10... Bf8 {[%clk 0:03:02.7]} 11. Ne1 {[%clk
0:03:02.9]} 11... Ng7 {[%clk 0:03:03.6]} 12. Nd3 {[%clk 0:03:02.4]} 12... f5
{[%clk 0:03:04.7]} 13. Qd2 {[%clk 0:02:54.8]} 13... Be7 {[%clk 0:03:05]} 14. f3
{[%clk 0:02:48.4]} 14... Nf6 {[%clk 0:03:06.1]} 15. c5 {[%clk 0:02:48.2]} 15...
fxe4 {[%clk 0:03:06.7]} 16. fxe4 {[%clk 0:02:48.7]} 16... Bh3 {[%clk 0:03:07.6]}
17. Rf3 {[%clk 0:02:48.2]} 17... Ng4 {[%clk 0:03:05.6]} 18. Nf2 {[%clk
0:02:31.7]} 18... Nxe3 {[%clk 0:02:52.4]} 19. Nxh3 {[%clk 0:02:32]} 19... Ng4
{[%clk 0:02:53.4]} 20. Raf1 {[%clk 0:02:28.8]} 20... h5 {[%clk 0:02:13]} 21. Rf7
{[%clk 0:02:19.7]} 21... Bf6 {[%clk 0:02:03.2]} 22. Bxg4 {[%clk 0:01:56.9]}
22... Kxf7 {[%clk 0:02:02.6]} 23. Ng5+ {[%clk 0:01:37.7]} 23... Ke7 {[%clk
0:01:07.5]} 24. Nh7 {[%clk 0:00:49.1]} 24... Rf8 {[%clk 0:01:02.2]} 25. Nxf8
{[%clk 0:00:45.3]} 25... Kxf8 {[%clk 0:00:50.6]} 26. Qg5 {[%clk 0:00:33.2]}
26... Kf7 {[%clk 0:00:46.8]} 27. Be6+ {[%clk 0:00:28.8]} 27... Nxe6 {[%clk
0:00:47.8]} 28. dxe6+ {[%clk 0:00:30.7]} 28... Kg7 {[%clk 0:00:49.5]} 29. Qe3
{[%clk 0:00:22]} 29... c6 {[%clk 0:00:48.8]} 30. Rd1 {[%clk 0:00:16.5]} 30...
Bg5 {[%clk 0:00:44.6]} 31. Qf3 {[%clk 0:00:17.3]} 31... Qf6 {[%clk 0:00:45.7]}
32. Qxf6+ {[%clk 0:00:17.2]} 32... Kxf6 {[%clk 0:00:47.6]} 33. Rxd6 {[%clk
0:00:17.7]} 33... Be3+ {[%clk 0:00:48.8]} 34. Kg2 {[%clk 0:00:18.3]} 34... Bxc5
{[%clk 0:00:50.7]} 35. Rd7 {[%clk 0:00:19.5]} 35... Rb8 {[%clk 0:00:50.8]} 36.
Na4 {[%clk 0:00:16.8]} 36... Be7 {[%clk 0:00:51.8]} 0-1

[Event "*** Titled Tuesday 3|2 Blitz"]
[Site "Chess.com"]
[Date "2016.09.06"]
[Round "4"]
[White "Jahonas"]
[Black "pedromartinez91"]
[Result "1-0"]
[WhiteElo "2195"]
[BlackElo "2380"]
[TimeControl "180+2"]
[EndTime "11:50:18 PDT"]
[Termination "Jahonas won by checkmate"]

1. d4 {[%clk 0:03:01.9]} 1... d5 {[%clk 0:03:00.6]} 2. Nf3 {[%clk 0:03:02.9]}
2... Nc6 {[%clk 0:03:00.8]} 3. c3 {[%clk 0:03:04.2]} 3... Bg4 {[%clk 0:03:01.1]}
4. Bf4 {[%clk 0:03:05.4]} 4... Bxf3 {[%clk 0:03:00.6]} 5. exf3 {[%clk
0:03:06.1]} 5... e6 {[%clk 0:03:01.5]} 6. Bb5 {[%clk 0:03:06.6]} 6... Bd6 {[%clk
0:03:02.6]} 7. Bxd6 {[%clk 0:03:07.3]} 7... cxd6 {[%clk 0:03:03]} 8. O-O {[%clk
0:03:08.1]} 8... Ne7 {[%clk 0:03:03.7]} 9. Re1 {[%clk 0:03:08.7]} 9... O-O
{[%clk 0:03:04.1]} 10. Nd2 {[%clk 0:03:09.7]} 10... Qb6 {[%clk 0:03:04.6]} 11.
Bxc6 {[%clk 0:03:08.1]} 11... bxc6 {[%clk 0:03:04.6]} 12. Rb1 {[%clk 0:03:08.5]}
12... Qa6 {[%clk 0:03:01.7]} 13. a3 {[%clk 0:03:09]} 13... Rab8 {[%clk
0:03:01.3]} 14. f4 {[%clk 0:03:09.8]} 14... c5 {[%clk 0:03:01.4]} 15. Nf3 {[%clk
0:03:09.7]} 15... Rfc8 {[%clk 0:02:59]} 16. dxc5 {[%clk 0:03:10.7]} 16... dxc5
{[%clk 0:02:57.7]} 17. Ne5 {[%clk 0:03:10.2]} 17... Rb7 {[%clk 0:02:55.9]} 18.
Qh5 {[%clk 0:03:08.5]} 18... g6 {[%clk 0:02:54.9]} 19. Qh4 {[%clk 0:03:01.9]}
19... f5 {[%clk 0:02:19.4]} 20. Nf3 {[%clk 0:02:44]} 20... Rc6 {[%clk
0:01:54.5]} 21. Ng5 {[%clk 0:02:37.9]} 21... Nc8 {[%clk 0:01:54.7]} 22. b4
{[%clk 0:01:37.3]} 22... cxb4 {[%clk 0:01:53.4]} 23. axb4 {[%clk 0:01:36.9]}
23... Qb6 {[%clk 0:01:48.8]} 24. Re3 {[%clk 0:01:30.8]} 24... d4 {[%clk
0:01:42.2]} 25. cxd4 {[%clk 0:01:26.8]} 25... Qxb4 {[%clk 0:01:41.8]} 26. Rbe1
{[%clk 0:01:21]} 26... Qxd4 {[%clk 0:01:40.5]} 27. Nxe6 {[%clk 0:01:18]} 27...
Qd7 {[%clk 0:01:29.1]} 28. Nd8 {[%clk 0:01:12.2]} 28... Nd6 {[%clk 0:01:25.4]}
29. Nxc6 {[%clk 0:01:08.3]} 29... Qxc6 {[%clk 0:01:26.2]} 30. h3 {[%clk
0:01:00.5]} 30... Ne4 {[%clk 0:01:25.5]} 31. Qd8+ {[%clk 0:00:58.5]} 31... Kg7
{[%clk 0:01:25.2]} 32. Qd4+ {[%clk 0:00:58.7]} 32... Kh6 {[%clk 0:01:18.7]} 33.
f3 {[%clk 0:00:56.3]} 33... Ng3 {[%clk 0:01:18.3]} 34. Kh2 {[%clk 0:00:50.5]}
34... Nh5 {[%clk 0:01:17.4]} 35. g4 {[%clk 0:00:38.1]} 35... fxg4 {[%clk
0:01:15.9]} 36. hxg4 {[%clk 0:00:34.9]} 36... Ng7 {[%clk 0:01:06.4]} 37. Kg3
{[%clk 0:00:33.8]} 37... g5 {[%clk 0:01:06.7]} 38. Rh1+ {[%clk 0:00:33.9]} 38...
Kg6 {[%clk 0:01:07.6]} 39. f5+ {[%clk 0:00:32.4]} 39... Kf7 {[%clk 0:01:07.6]}
40. Rxh7 {[%clk 0:00:33]} 40... Qc7+ {[%clk 0:01:08.6]} 41. Qe5 {[%clk
0:00:34.2]} 41... Qxe5+ {[%clk 0:01:06.7]} 42. Rxe5 {[%clk 0:00:34.9]} 42... Kf6
{[%clk 0:01:06.9]} 43. Ra5 {[%clk 0:00:35.7]} 43... Kf7 {[%clk 0:01:03.7]} 44.
Ra6 {[%clk 0:00:36.3]} 44... Kg8 {[%clk 0:01:04.8]} 45. Rhh6 {[%clk 0:00:35.1]}
45... Ne8 {[%clk 0:01:04.8]} 46. Rhg6+ {[%clk 0:00:35.9]} 46... Kf7 {[%clk
0:01:05.4]} 47. Rxg5 {[%clk 0:00:36.9]} 47... Nf6 {[%clk 0:01:04.1]} 48. Rg6
{[%clk 0:00:37.9]} 48... Nd5 {[%clk 0:01:05.1]} 49. Rh6 {[%clk 0:00:38.1]} 49...
Rb1 {[%clk 0:01:04.1]} 50. Rxa7+ {[%clk 0:00:37.8]} 50... Kg8 {[%clk 0:01:04.8]}
51. Rg6+ {[%clk 0:00:38.6]} 51... Kf8 {[%clk 0:01:05.4]} 52. Rd6 {[%clk
0:00:39.5]} 52... Rb5 {[%clk 0:01:00.1]} 53. Rd8# {[%clk 0:00:39.8]} 1-0

[Event "*** Titled Tuesday 3|2 Blitz"]
[Site "Chess.com"]
[Date "2016.09.06"]
[Round "4"]
[White "IamSchrodingersCat"]
[Black "Maitreia"]
[Result "1-0"]
[WhiteElo "2275"]
[BlackElo "2398"]
[TimeControl "180+2"]
[EndTime "11:50:22 PDT"]
[Termination "IamSchrodingersCat won by resignation"]

1. e4 {[%clk 0:03:01.9]} 1... c5 {[%clk 0:03:00.9]} 2. Nf3 {[%clk 0:03:02.3]}
2... g6 {[%clk 0:03:02]} 3. d4 {[%clk 0:03:03.2]} 3... cxd4 {[%clk 0:03:03.9]}
4. Nxd4 {[%clk 0:03:04.9]} 4... Bg7 {[%clk 0:03:04.1]} 5. Nc3 {[%clk 0:03:06.3]}
5... Nc6 {[%clk 0:03:04.6]} 6. Be3 {[%clk 0:03:07.3]} 6... Nf6 {[%clk
0:03:04.5]} 7. Nxc6 {[%clk 0:03:08.1]} 7... bxc6 {[%clk 0:03:05.2]} 8. e5 {[%clk
0:03:09]} 8... Ng8 {[%clk 0:03:06.9]} 9. Bd4 {[%clk 0:03:09.6]} 9... Nh6 {[%clk
0:03:02]} 10. e6 {[%clk 0:03:10.5]} 10... O-O {[%clk 0:02:56.2]} 11. Bxg7 {[%clk
0:03:10.6]} 11... Kxg7 {[%clk 0:02:58.1]} 12. exd7 {[%clk 0:03:12.1]} 12... Qxd7
{[%clk 0:02:58.6]} 13. Qxd7 {[%clk 0:03:12.5]} 13... Bxd7 {[%clk 0:03:00.5]} 14.
O-O-O {[%clk 0:03:14]} 14... Be6 {[%clk 0:02:56.6]} 15. h3 {[%clk 0:03:08.5]}
15... Nf5 {[%clk 0:02:56]} 16. Bd3 {[%clk 0:03:08.4]} 16... Nh4 {[%clk
0:02:53.2]} 17. g3 {[%clk 0:03:07.1]} 17... Nf3 {[%clk 0:02:49.1]} 18. Be4
{[%clk 0:03:05.6]} 18... Ng5 {[%clk 0:02:42.8]} 19. Bxc6 {[%clk 0:03:05.5]}
19... Rab8 {[%clk 0:02:32.3]} 20. h4 {[%clk 0:03:02.3]} 20... Nh3 {[%clk
0:02:20.9]} 21. Rh2 {[%clk 0:02:27.9]} 21... g5 {[%clk 0:02:07.6]} 22. hxg5
{[%clk 0:02:04.1]} 22... Nxg5 {[%clk 0:02:08]} 23. f4 {[%clk 0:02:01.8]} 23...
Nh3 {[%clk 0:02:09]} 24. Rdh1 {[%clk 0:01:59.2]} 24... h6 {[%clk 0:02:04.5]} 25.
f5 {[%clk 0:01:28.2]} 25... Bxf5 {[%clk 0:02:03.9]} 26. g4 {[%clk 0:01:29.6]}
26... Bxg4 {[%clk 0:01:37.1]} 27. Rg2 {[%clk 0:01:29.6]} 27... f5 {[%clk
0:01:27.4]} 28. Rxh3 {[%clk 0:01:29.5]} 28... Kg6 {[%clk 0:01:28.8]} 29. Re3
{[%clk 0:01:26.7]} 29... Rf6 {[%clk 0:01:24.8]} 30. Bf3 {[%clk 0:01:25.5]} 30...
h5 {[%clk 0:01:21.1]} 31. Rxe7 {[%clk 0:01:25.6]} 31... a5 {[%clk 0:01:21.1]}
32. Nd5 {[%clk 0:01:22.3]} 32... Rf7 {[%clk 0:01:16.5]} 33. Rxf7 {[%clk
0:01:21.1]} 33... Kxf7 {[%clk 0:01:18.4]} 34. Bxg4 {[%clk 0:01:20.2]} 34... hxg4
{[%clk 0:01:10.7]} 35. c4 {[%clk 0:01:19.9]} 35... Rc8 {[%clk 0:01:04.8]} 36. b3
{[%clk 0:01:15.7]} 36... Ke6 {[%clk 0:01:04.2]} 37. Kc2 {[%clk 0:01:14.6]} 37...
Ke5 {[%clk 0:01:03.6]} 38. Kd3 {[%clk 0:01:14.2]} 38... Rg8 {[%clk 0:00:59.7]}
39. Re2+ {[%clk 0:01:10.7]} 39... Kd6 {[%clk 0:01:00.8]} 40. Kd4 {[%clk
0:01:08.9]} 40... Rh8 {[%clk 0:00:39.4]} 41. c5+ {[%clk 0:01:09.3]} 41... Kc6
{[%clk 0:00:40.8]} 42. Re6+ {[%clk 0:01:07]} 42... Kd7 {[%clk 0:00:38.8]} 43.
Rd6+ {[%clk 0:01:08.3]} 43... Ke8 {[%clk 0:00:36.3]} 44. c6 {[%clk 0:01:07.9]}
44... Kf7 {[%clk 0:00:35.6]} 45. c7 {[%clk 0:01:08.1]} 45... g3 {[%clk
0:00:29.2]} 46. Rf6+ {[%clk 0:00:55.8]} 46... Kg7 {[%clk 0:00:28.1]} 47. Rxf5
{[%clk 0:00:56.4]} 47... Kg6 {[%clk 0:00:27]} 48. Rf3 {[%clk 0:00:56]} 1-0

[Event "*** Titled Tuesday 3|2 Blitz"]
[Site "Chess.com"]
[Date "2016.09.06"]
[Round "4"]
[White "goingin33"]
[Black "ruifeng"]
[Result "0-1"]
[WhiteElo "2138"]
[BlackElo "2343"]
[TimeControl "180+2"]
[EndTime "11:50:31 PDT"]
[Termination "ruifeng won by resignation"]

1. e4 {[%clk 0:03:01.9]} 1... e5 {[%clk 0:02:58.7]} 2. Nf3 {[%clk 0:03:02.8]}
2... Nc6 {[%clk 0:02:59.7]} 3. Nc3 {[%clk 0:03:04.4]} 3... Nf6 {[%clk
0:02:29.3]} 4. Bb5 {[%clk 0:03:04.6]} 4... d6 {[%clk 0:02:30.4]} 5. d4 {[%clk
0:03:05.1]} 5... exd4 {[%clk 0:02:30.5]} 6. Nxd4 {[%clk 0:03:07]} 6... Bd7
{[%clk 0:02:31.8]} 7. Bxc6 {[%clk 0:03:05.8]} 7... bxc6 {[%clk 0:02:32.7]} 8.
O-O {[%clk 0:03:00.7]} 8... Be7 {[%clk 0:02:33]} 9. Re1 {[%clk 0:02:51.9]} 9...
O-O {[%clk 0:02:33.5]} 10. h3 {[%clk 0:02:41.9]} 10... c5 {[%clk 0:02:34.5]} 11.
Nde2 {[%clk 0:02:41.9]} 11... Re8 {[%clk 0:02:30]} 12. Nf4 {[%clk 0:02:42.1]}
12... Bf8 {[%clk 0:02:28.6]} 13. Nfd5 {[%clk 0:02:41.5]} 13... c6 {[%clk
0:02:07.9]} 14. Nxf6+ {[%clk 0:02:36.2]} 14... Qxf6 {[%clk 0:02:08.9]} 15. Be3
{[%clk 0:02:14.4]} 15... Rad8 {[%clk 0:02:09.6]} 16. Qd2 {[%clk 0:02:14.4]}
16... h6 {[%clk 0:02:09.8]} 17. Rad1 {[%clk 0:02:11.6]} 17... Be6 {[%clk
0:02:10.4]} 18. b3 {[%clk 0:01:53.4]} 18... d5 {[%clk 0:02:10.1]} 19. exd5
{[%clk 0:01:44.5]} 19... cxd5 {[%clk 0:02:11.1]} 20. Na4 {[%clk 0:01:45.5]}
20... d4 {[%clk 0:02:03.3]} 21. Bf4 {[%clk 0:01:46.4]} 21... Qg6 {[%clk
0:01:58.7]} 22. Kh2 {[%clk 0:01:43.2]} 22... Bf5 {[%clk 0:01:59.8]} 23. c3
{[%clk 0:01:36.5]} 23... Be4 {[%clk 0:01:35.9]} 24. f3 {[%clk 0:01:29.1]} 24...
Bc6 {[%clk 0:01:29.5]} 25. cxd4 {[%clk 0:01:17.4]} 25... Rxd4 {[%clk 0:01:15.3]}
26. Qf2 {[%clk 0:01:07.4]} 26... Rxf4 {[%clk 0:01:11.7]} 27. Rxe8 {[%clk
0:01:04.8]} 27... Bxe8 {[%clk 0:01:12.4]} 28. Rd8 {[%clk 0:01:06.3]} 28... Bxa4
{[%clk 0:01:13.1]} 29. Qxc5 {[%clk 0:01:05.8]} 29... Qf6 {[%clk 0:00:38.9]} 30.
Rxf8+ {[%clk 0:01:00.2]} 30... Kh7 {[%clk 0:00:39.8]} 31. bxa4 {[%clk
0:01:01.9]} 31... a6 {[%clk 0:00:33.7]} 32. Rc8 {[%clk 0:00:55.5]} 32... Rf5
{[%clk 0:00:30.2]} 33. Qc2 {[%clk 0:00:55.2]} 33... g6 {[%clk 0:00:30.7]} 34.
Rc6 {[%clk 0:00:55.8]} 34... Qe5+ {[%clk 0:00:31.4]} 35. Kg1 {[%clk 0:00:53]}
35... Qe3+ {[%clk 0:00:27]} 36. Qf2 {[%clk 0:00:48.6]} 36... Qd3 {[%clk
0:00:21.4]} 37. Qb2 {[%clk 0:00:36]} 37... Rd5 {[%clk 0:00:15.4]} 38. Rc8 {[%clk
0:00:31]} 38... Qe3+ {[%clk 0:00:16]} 39. Kh2 {[%clk 0:00:24.4]} 39... Qf4+
{[%clk 0:00:17]} 40. g3 {[%clk 0:00:25.3]} 40... Rd2+ {[%clk 0:00:15.7]} 41. Kh1
{[%clk 0:00:23.4]} 41... Qxf3+ {[%clk 0:00:16]} 0-1

[Event "*** Titled Tuesday 3|2 Blitz"]
[Site "Chess.com"]
[Date "2016.09.06"]
[Round "4"]
[White "Abdodi"]
[Black "Ksenia_Legenko"]
[Result "1-0"]
[WhiteElo "1955"]
[BlackElo "2014"]
[TimeControl "180+2"]
[EndTime "11:50:44 PDT"]
[Termination "Abdodi won on time"]

1. d4 {[%clk 0:02:52.6]} 1... d5 {[%clk 0:02:59.4]} 2. Nf3 {[%clk 0:02:50.6]}
2... Nf6 {[%clk 0:02:59.7]} 3. c4 {[%clk 0:02:46.9]} 3... dxc4 {[%clk
0:03:00.4]} 4. e3 {[%clk 0:02:41.3]} 4... e6 {[%clk 0:03:01.1]} 5. Bxc4 {[%clk
0:02:40.9]} 5... a6 {[%clk 0:03:02.1]} 6. O-O {[%clk 0:02:41.3]} 6... b5 {[%clk
0:03:02.8]} 7. Be2 {[%clk 0:02:42.1]} 7... Bb7 {[%clk 0:03:03.7]} 8. Nbd2 {[%clk
0:02:41]} 8... Nbd7 {[%clk 0:02:59.8]} 9. b3 {[%clk 0:02:39.2]} 9... c5 {[%clk
0:02:44.6]} 10. Bb2 {[%clk 0:02:35.1]} 10... Be7 {[%clk 0:02:45]} 11. Rc1 {[%clk
0:02:30]} 11... Rc8 {[%clk 0:02:43.1]} 12. Re1 {[%clk 0:02:19.4]} 12... O-O
{[%clk 0:02:42.1]} 13. Nf1 {[%clk 0:02:19]} 13... cxd4 {[%clk 0:02:34.2]} 14.
Qxd4 {[%clk 0:01:58.5]} 14... Bc5 {[%clk 0:02:25.1]} 15. Qh4 {[%clk 0:01:54]}
15... Ne4 {[%clk 0:01:52.5]} 16. Red1 {[%clk 0:01:00.2]} 16... Qxh4 {[%clk
0:01:44.1]} 17. Nxh4 {[%clk 0:01:02.1]} 17... Ndf6 {[%clk 0:01:21.6]} 18. f3
{[%clk 0:01:01.9]} 18... Ng5 {[%clk 0:01:04.6]} 19. Bxf6 {[%clk 0:00:44.3]}
19... gxf6 {[%clk 0:01:04.2]} 20. Kf2 {[%clk 0:00:43.7]} 20... e5 {[%clk
0:00:58]} 21. Nf5 {[%clk 0:00:38.8]} 21... Ne6 {[%clk 0:00:52]} 22. N1g3 {[%clk
0:00:39.4]} 22... Rcd8 {[%clk 0:00:21.5]} 23. Nh5 {[%clk 0:00:37.3]} 23... Rxd1
{[%clk 0:00:15]} 24. Rxd1 {[%clk 0:00:37]} 24... Rd8 {[%clk 0:00:11.3]} 25.
Nxf6+ {[%clk 0:00:36.1]} 25... Kh8 {[%clk 0:00:09.9]} 26. Rxd8+ {[%clk
0:00:32.3]} 26... Nxd8 {[%clk 0:00:10.6]} 27. Nd7 {[%clk 0:00:33.9]} 27... Ba3
{[%clk 0:00:06.8]} 28. Nxe5 {[%clk 0:00:34.4]} 28... Kg8 {[%clk 0:00:07.1]} 29.
Ng4 {[%clk 0:00:32]} 29... Kf8 {[%clk 0:00:07.7]} 30. Nf6 {[%clk 0:00:31.4]}
30... h5 {[%clk 0:00:07.4]} 31. Nxh5 {[%clk 0:00:31.8]} 31... Ne6 {[%clk
0:00:08.8]} 32. Nf4 {[%clk 0:00:32]} 32... Nc7 {[%clk 0:00:08.6]} 33. h4 {[%clk
0:00:32.4]} 33... Bc8 {[%clk 0:00:08.1]} 34. g4 {[%clk 0:00:29.1]} 34... Kg8
{[%clk 0:00:04]} 35. Nh6+ {[%clk 0:00:27.5]} 35... Kf8 {[%clk 0:00:04]} 36. g5
{[%clk 0:00:28.1]} 1-0

[Event "*** Titled Tuesday 3|2 Blitz"]
[Site "Chess.com"]
[Date "2016.09.06"]
[Round "4"]
[White "maciek_92"]
[Black "Gabrielian_Artur"]
[Result "1-0"]
[WhiteElo "2526"]
[BlackElo "2502"]
[TimeControl "180+2"]
[EndTime "11:50:48 PDT"]
[Termination "maciek_92 won by resignation"]

1. c4 {[%clk 0:03:01.9]} 1... Nf6 {[%clk 0:03:00.5]} 2. g3 {[%clk 0:03:01.9]}
2... g6 {[%clk 0:03:01.7]} 3. Bg2 {[%clk 0:03:03]} 3... Bg7 {[%clk 0:03:03.1]}
4. Nc3 {[%clk 0:03:04.6]} 4... O-O {[%clk 0:03:04.3]} 5. d4 {[%clk 0:03:01.4]}
5... d6 {[%clk 0:03:04.8]} 6. Nf3 {[%clk 0:03:01.2]} 6... Nbd7 {[%clk
0:03:05.9]} 7. O-O {[%clk 0:03:02.5]} 7... e5 {[%clk 0:03:07.2]} 8. e4 {[%clk
0:03:04]} 8... exd4 {[%clk 0:03:08.6]} 9. Nxd4 {[%clk 0:03:05.9]} 9... Re8
{[%clk 0:03:08.5]} 10. Re1 {[%clk 0:03:07.3]} 10... Nc5 {[%clk 0:03:09.5]} 11.
h3 {[%clk 0:03:06.4]} 11... Bd7 {[%clk 0:03:10.9]} 12. b3 {[%clk 0:03:04.6]}
12... h6 {[%clk 0:03:11.9]} 13. Bb2 {[%clk 0:02:55.4]} 13... Qc8 {[%clk
0:03:05.4]} 14. Kh2 {[%clk 0:02:55.8]} 14... Ne6 {[%clk 0:03:06.5]} 15. Nxe6
{[%clk 0:02:49.8]} 15... Bxe6 {[%clk 0:03:07.7]} 16. Qd2 {[%clk 0:02:47.8]}
16... h5 {[%clk 0:03:06.7]} 17. Nd5 {[%clk 0:02:41.4]} 17... Bxd5 {[%clk
0:03:06]} 18. cxd5 {[%clk 0:02:33.5]} 18... Qd8 {[%clk 0:03:06.7]} 19. f4 {[%clk
0:02:33.2]} 19... Nd7 {[%clk 0:03:00.1]} 20. Bxg7 {[%clk 0:02:17.2]} 20... Kxg7
{[%clk 0:03:01.3]} 21. Rac1 {[%clk 0:02:18.9]} 21... Kg8 {[%clk 0:02:56.1]} 22.
Rc2 {[%clk 0:02:12.3]} 22... a5 {[%clk 0:02:53.8]} 23. a3 {[%clk 0:02:12.3]}
23... Nc5 {[%clk 0:02:44.8]} 24. b4 {[%clk 0:02:10.2]} 24... axb4 {[%clk
0:02:46.1]} 25. axb4 {[%clk 0:02:12.1]} 25... Nd7 {[%clk 0:02:46.4]} 26. Rec1
{[%clk 0:02:11.7]} 26... Rc8 {[%clk 0:02:42.1]} 27. Qd4 {[%clk 0:02:10.4]} 27...
h4 {[%clk 0:02:42.2]} 28. Rc3 {[%clk 0:01:55]} 28... hxg3+ {[%clk 0:02:41.6]}
29. Rxg3 {[%clk 0:01:55.9]} 29... Qf6 {[%clk 0:02:35.6]} 30. Qd2 {[%clk
0:01:57.4]} 30... c6 {[%clk 0:02:19.3]} 31. dxc6 {[%clk 0:01:51.5]} 31... bxc6
{[%clk 0:02:06.9]} 32. Rd1 {[%clk 0:01:52.9]} 32... d5 {[%clk 0:01:57.7]} 33. e5
{[%clk 0:01:43.1]} 33... Qe7 {[%clk 0:01:53.8]} 34. b5 {[%clk 0:01:43.7]} 34...
cxb5 {[%clk 0:01:52]} 35. Bxd5 {[%clk 0:01:44.7]} 35... Kg7 {[%clk 0:01:47.7]}
36. e6 {[%clk 0:01:21.9]} 36... fxe6 {[%clk 0:01:40.4]} 37. Be4 {[%clk
0:01:22.8]} 37... Nf8 {[%clk 0:01:40]} 38. Rdg1 {[%clk 0:01:17.6]} 38... Qf6
{[%clk 0:01:29.9]} 39. Bxg6 {[%clk 0:00:29.4]} 39... Nxg6 {[%clk 0:01:18.4]} 40.
Qd3 {[%clk 0:00:29.6]} 40... Kh8 {[%clk 0:01:16]} 41. Rxg6 {[%clk 0:00:26.1]}
41... Qxf4+ {[%clk 0:01:17.1]} 42. Kh1 {[%clk 0:00:27.1]} 42... Rg8 {[%clk
0:00:36.2]} 43. Qd4+ {[%clk 0:00:26.7]} 1-0